fUSD/lending_fUSD_20240215
["ID","MTS","AMOUNT","RATE_DAILY","PERIOD"]
[314104240,1707982243304,-1354.4,0.00038356,7]
[314104242,1707982243313,-500.0,0.00038356,7]
[314104243,1707982243323,-608.75008527,0.00038356,7]
[314104246,1707982243332,-500.0,0.00038356,7]
[314104248,1707982243341,-613.5239446,0.00038356,7]
[314104250,1707982243351,-486.38369617,0.00038356,7]
[314104251,1707982243360,-366.15741505,0.00038356,7]
[314104253,1707982243369,-508.33411622,0.00038356,7]
[314104256,1707982243378,-377.1839293,0.00038356,7]
[314104258,1707982243395,-122.8160707,0.00038356,7]
[314104260,1707982243403,-500.0,0.00038356,7]
[314104262,1707982243413,-234.69650725,0.00038356,7]
[314104264,1707982243422,-556.62312727,0.00038356,7]
[314104266,1707982243431,-500.0,0.00038356,7]
[314104268,1707982243440,-500.0,0.00038356,7]
[314104270,1707982243449,-500.0,0.00038356,7]
[314104272,1707982243458,-500.0,0.00038356,7]
[314104274,1707982243467,-500.0,0.00038356,7]
[314104276,1707982243477,-500.0,0.00038356,7]
[314104278,1707982243486,-500.0,0.00038356,7]
[314104280,1707982243495,-528.03317239,0.00038356,7]
[314104282,1707982243504,-500.0,0.00038356,7]
[314104284,1707982243513,-500.0,0.00038356,7]
[314104286,1707982243522,-574.9764823,0.00038356,7]
[314104288,1707982243531,-160.139379,0.00038356,7]
[314104290,1707982243540,-361.1822182,0.00038356,7]
[314104292,1707982243549,-500.0,0.00038356,7]
[314104293,1707982243558,-500.0,0.00038356,7]
[314104294,1707982243567,-500.0,0.00038356,7]
[314104295,1707982243576,-500.0,0.00038356,7]
[314104296,1707982243585,-500.0,0.00038356,7]
[314104297,1707982243594,-605.25153489,0.00038356,7]
[314104298,1707982243604,-500.0,0.00038356,7]
[314104299,1707982243613,-500.0,0.00038356,7]
[314104301,1707982243623,-311.48590153,0.00038356,7]
[314104304,1707982243636,-188.51409847,0.00038356,7]
[314104306,1707982243645,-323.11271249,0.00038356,7]
[314104308,1707982243656,-500.0,0.00038356,7]
[314104310,1707982243665,-310.23783904,0.00038356,7]
[314104312,1707982243677,-189.76216096,0.00038356,7]
[314104314,1707982243687,-219.33591749,0.00038356,7]
[314104316,1707982243697,-227.79113417,0.00038356,7]
[314104318,1707982243709,-272.20886583,0.00038356,7]
[314104320,1707982243718,-550.3086389,0.00038356,7]
[314104322,1707982243729,-500.0,0.00038356,7]
[314104324,1707982243740,-325.6805572,0.00038356,7]
[314104326,1707982243750,-176.40013662,0.00038356,7]
[314104328,1707982243760,-378.24209355,0.00038356,7]
[314104330,1707982243770,-389.1820203,0.00038356,7]
[314104333,1707982243782,-110.8179797,0.00038356,7]
[314104335,1707982243791,-500.0,0.00038356,7]
[314104337,1707982243801,-500.0,0.00038356,7]
[314104339,1707982243810,-500.0,0.00038356,7]
[314104341,1707982243820,-500.0,0.00038356,7]
[314104343,1707982243830,-500.0,0.00038356,7]
[314104345,1707982243839,-500.0,0.00038356,7]
[314104347,1707982243848,-500.0,0.00038356,7]
[314104349,1707982243857,-500.0,0.00038356,7]
[314104351,1707982243867,-408.91413217,0.00038356,7]
[314104353,1707982243876,-500.0,0.00038356,7]
[314104355,1707982243885,-500.0,0.00038356,7]
[314104357,1707982243893,-16.70319288,0.00038356,7]
[314104360,1707982243910,-483.29680712,0.00038356,7]
[314104362,1707982243918,-500.0,0.00038356,7]
[314104363,1707982243928,-548.47279087,0.00038356,7]
[314104365,1707982243937,-500.0,0.00038356,7]
[314104367,1707982243946,-500.0,0.00038356,7]
[314104369,1707982243955,-500.0,0.00038356,7]
[314104371,1707982243963,-500.0,0.00038356,7]
[314104373,1707982243973,-500.0,0.00038356,7]
[314104375,1707982243982,-500.0,0.00038356,7]
[314104377,1707982243991,-407.54303151,0.00038356,7]
[314104380,1707982244002,-92.45696849,0.00038356,7]
[314104382,1707982244011,-500.0,0.00038356,7]
[314104384,1707982244020,-500.0,0.00038356,7]
[314104386,1707982244028,-500.0,0.00038356,7]
[314104388,1707982244038,-500.0,0.00038356,7]
[314104390,1707982244047,-500.0,0.00038356,7]
[314104392,1707982244056,-500.0,0.00038356,7]
[314104393,1707982244064,-517.48,0.00038356,7]
[314104395,1707982244073,-378.27319445,0.00038356,7]
[314104398,1707982244083,-500.0,0.00038356,7]
[314104400,1707982244093,-500.0,0.00038356,7]
[314104401,1707982244102,-500.0,0.00038356,7]
[314104403,1707982244111,-500.0,0.00038356,7]
[314104405,1707982244120,-1009.87327385,0.00038356,7]
[314104408,1707982244130,-546.05836431,0.00038356,7]
[314104409,1707982244139,-500.0,0.00038356,7]
[314104411,1707982244148,-340.45307204,0.00038356,7]
[314104413,1707982244157,-500.0,0.00038356,7]
[314104415,1707982244167,-500.0,0.00038356,7]
[314104418,1707982244176,-500.0,0.00038356,7]
[314104419,1707982244185,-516.69245907,0.00038356,7]
[314104420,1707982244194,-572.63974245,0.00038356,7]
[314104421,1707982244203,-500.0,0.00038356,7]
[314104423,1707982244212,-523.03088913,0.00038356,7]
[314104424,1707982244221,-500.0,0.00038356,7]
[314104425,1707982244231,-282.71311724,0.00038356,7]
[314104426,1707982244242,-196.72489075,0.00038356,7]
[314104427,1707982244252,-456.07784876,0.00038356,7]
[314104428,1707982244260,-284.67762849,0.00038356,7]
[314104429,1707982244273,-215.32237151,0.00038356,7]
[314104430,1707982244282,-199.89349961,0.00038356,7]
[314104431,1707982244294,-112.26650039,0.00038356,7]
[314104432,1707982244304,-225.936617,0.00038356,7]
[314104463,1707982246267,-359.733383,0.00038356,7]
[314104464,1707982246276,-402.53176822,0.00038356,7]
[314104465,1707982246285,-500.0,0.00038356,7]
[314104466,1707982246295,-500.0,0.00038356,7]
[314104467,1707982246305,-500.0,0.00038356,7]
[314104468,1707982246314,-500.0,0.00038356,7]
[314104469,1707982246324,-500.0,0.00038356,7]
[314104470,1707982246334,-500.0,0.00038356,7]
[314104471,1707982246343,-500.0,0.00038356,7]
[314104472,1707982246353,-500.0,0.00038356,7]
[314104473,1707982246361,-268.91795667,0.00038356,7]
[314104474,1707982246373,-231.08204333,0.00038356,7]
[314104475,1707982246383,-500.0,0.00038356,7]
[314104476,1707982246392,-500.0,0.00038356,7]
[314104477,1707982246401,-500.0,0.00038356,7]
[314104478,1707982246411,-500.0,0.00038356,7]
[314104479,1707982246419,-78.25387457,0.00038356,7]
[314104500,1707983431723,-1000.0,0.0003,2]
[314104502,1707983431733,-592.29409451,0.000334,2]
[314104503,1707983431745,-521.97670531,0.000334,2]
[314104504,1707983431757,-395.51178556,0.000334,2]
[314104505,1707983431781,-199.96271462,0.000334,2]
[314104506,1707983431790,-545.39554787,0.000335,7]
[314104507,1707983434188,-454.60445213,0.000335,7]
[314104508,1707983434197,-454.14,0.0003359,2]
[314104509,1707983434207,-160.93113565,0.00033747,2]
[314104510,1707983434216,-6413.8908,0.00033748,2]
[314104511,1707983434225,-150.0,0.00033847,2]
[314104512,1707983434235,-1487.17892221,0.00033848,10]
[314104513,1707983434245,-9035.39002698,0.00033848,10]
[314104514,1707983434254,-494.90158047,0.00033848,10]
[314104515,1707983434265,-1836.03,0.00033916,5]
[314104516,1707983434274,-1844.7,0.00033971,5]
[314104517,1707983434284,-349.26,0.00034071,2]
[314104518,1707983434293,-1812.21,0.00034071,5]
[314104519,1707983434302,-177.34,0.00034197,2]
[314104520,1707983434312,-1815.44,0.00034254,5]
[314104521,1707983434322,-1786.84,0.00034593,5]
[314104522,1707983434331,-160.93113565,0.0003472,2]
[314104523,1707983434341,-177.34,0.00034745,2]
[314104524,1707983434350,-150.99,0.00034799,2]
[314104525,1707983434362,-200.0,0.00034936,2]
[314104526,1707983434372,-750.0,0.00034944,2]
[314104527,1707983434381,-168.92,0.00034975,2]
[314104528,1707983434391,-1358.87131382,0.00034975,2]
[314104529,1707983434403,-962.27868618,0.00034975,2]
[314104530,1707983434412,-1466.51,0.00034998,2]
[314104531,1707983434422,-2000.0,0.00035,10]
[314104532,1707983434431,-196.1,0.00035037,2]
[314104533,1707983434441,-2705.0,0.00035048,2]
[314104534,1707983434450,-1682.52,0.00035081,2]
[314104535,1707983434459,-748.43,0.00035093,2]
[314104536,1707983434468,-250.0,0.00035099,2]
[314104537,1707983434478,-691.43,0.00035105,2]
[314104538,1707983434488,-1852.42,0.00035122,2]
[314104539,1707983434497,-4123.23,0.00035132,2]
[314104540,1707983434507,-776.62651649,0.00035196,2]
[314104541,1707983434516,-3186.57,0.00035197,2]
[314104542,1707983434525,-499.99,0.00035197,2]
[314104543,1707983434535,-1831.99,0.00035197,5]
[314104545,1707983434544,-500.0,0.00035213,2]
[314104547,1707983434553,-750.27037537,0.00035279,2]
[314104549,1707983434565,-13815.33962463,0.00035279,2]
[314104550,1707983434574,-205.63768806,0.00035293,2]
[314104551,1707983434583,-250.0,0.00035324,2]
[314104552,1707983434593,-182.34,0.00035332,120]
[314104553,1707983434602,-3452.54,0.00035332,2]
[314104554,1707983434611,-1715.05,0.00035336,2]
[314104555,1707983434620,-205.0,0.00035362,2]
[314104556,1707983434633,-1000.0,0.00035404,2]
[314104557,1707983434642,-250.0,0.00035405,111]
[314104558,1707983434651,-2000.0,0.00035405,2]
[314104559,1707983434661,-1389.63,0.00035409,2]
[314104560,1707983434671,-150.0,0.00035419,2]
[314104561,1707983434681,-500.0,0.00035434,2]
[314104562,1707983434690,-1950.77,0.0003547,2]
[314104563,1707983434701,-23890.0,0.00035504,2]
[314104564,1707983434710,-1753.18,0.00035504,2]
[314104565,1707983434719,-3297.04,0.00035508,2]
[314104566,1707983434728,-2388.16,0.0003553,2]
[314104567,1707983434738,-151.23,0.00035543,2]
[314104568,1707983434749,-1044.94,0.00035548,2]
[314104569,1707983434758,-249.97,0.00035548,2]
[314104570,1707983434767,-1175.67388887,0.00035571,3]
[314104571,1707983434776,-208.99113195,0.00035571,3]
[314104572,1707983434785,-255.61754478,0.00035571,3]
[314104573,1707983434795,-2532.82,0.00035583,2]
[314104574,1707983434804,-501.15,0.00035625,2]
[314104575,1707983434813,-160.93113565,0.00035693,2]
[314104576,1707983434823,-2785.0,0.000357,3]
[314104577,1707983434832,-151.23,0.00035749,2]
[314104578,1707983434841,-2979.73,0.00035749,2]
[314104579,1707983434850,-1916.81,0.00035761,2]
[314104580,1707983434859,-251.57,0.00035771,2]
[314104581,1707983434868,-175.03,0.00035775,2]
[314104582,1707983434877,-166.12,0.00035791,2]
[314104583,1707983434887,-154.07,0.00035791,2]
[314104584,1707983434896,-14578.0,0.000358,3]
[314104585,1707983434908,-454.14,0.00035854,2]
[314104586,1707983434918,-151.23,0.00035954,2]
[314104587,1707983434927,-2928.75,0.00035995,2]
[314104588,1707983434937,-151.23,0.0003616,2]
[314104589,1707983434947,-206.0,0.0003623,2]
[314104590,1707983434956,-154.07,0.00036238,2]
[314104591,1707983434965,-1778.54,0.00036325,5]
[314104592,1707983434974,-151.23,0.00036366,2]
[314104593,1707983434983,-151.23,0.00036572,2]
[314104594,1707983434992,-160.93113565,0.00036666,2]
[314104595,1707983435002,-154.07,0.00036685,2]
[314104596,1707983435012,-151.23,0.00036778,2]
[314104597,1707983435022,-196.1,0.00036789,2]
[314104598,1707983435032,-151.23,0.00036983,2]
[314104599,1707983435042,-154.07,0.00037133,2]
[314104600,1707983435052,-1753.18,0.00037147,2]
[314104601,1707983435062,-151.23,0.00037189,2]
[314104602,1707983435071,-150.0,0.00037232,2]
[314104603,1707983435081,-166.36,0.000373,3]
[314104604,1707983435093,-166.36,0.000373,3]
[314104605,1707983435105,-200.0,0.00037359,120]
[314104606,1707983435115,-151.23,0.00037395,2]
[314104607,1707983435124,-234.16699499,0.0003748,2]
[314104608,1707983435134,-5000.0,0.000375,15]
[314104609,1707983435146,-154.07,0.0003758,2]
[314104610,1707983435155,-160.93113565,0.0003764,2]
[314104611,1707983435165,-1374.75703768,0.00037899,2]
[314104612,1707983435178,-544.05619937,0.00038,2]
[314104613,1707983435190,-154.07,0.00038027,2]
[314104614,1707983435199,-454.14,0.00038118,2]
[314104615,1707983435208,-234.16699497,0.00038148,2]
[314104616,1707983435217,-1000.0,0.00038156,2]
[314104617,1707983435226,-688.606,0.00038156,2]
[314104618,1707983435235,-2500.0,0.00038156,2]
[314104619,1707983435244,-7774.7444,0.00038156,2]
[314104620,1707983435254,-210.3599,0.00038256,2]
[314104621,1707983435263,-11186.5524295,0.00038256,2]
[314104622,1707983435277,-9749.8640705,0.00038256,2]
[314104623,1707983435287,-8346.7645,0.00038256,2]
[314104624,1707983435296,-2507.4163,0.00038256,2]
[314104625,1707983435306,-213.11163392,0.00038256,10]
[314104626,1707983435316,-3000.0,0.00038328,2]
[314104627,1707983435326,-629.07654232,0.00038356,3]
[314104628,1707983435336,-1813.77,0.00038356,5]
[314104629,1707983435346,-1777.87,0.00038356,5]
[314104630,1707983435356,-1844.93,0.00038356,5]
[314104631,1707983435366,-524.26860574,0.00038356,7]
[314104632,1707983435376,-191.72245552,0.00038356,7]
[314104633,1707983435386,-2000.0,0.00038356,2]
[314104634,1707983435396,-200.0,0.00038356,2]
[314104635,1707983435406,-538.25853175,0.00038356,7]
[314104636,1707983435416,-531.92876867,0.00038356,7]
[314104637,1707983435425,-513.91031969,0.00038356,7]
[314104638,1707983435438,-500.0,0.00038356,7]
[314104639,1707983435448,-343.28,0.00038356,7]
[314104640,1707983435457,-414.59066216,0.00038356,7]
[314104641,1707983435467,-519.94743154,0.00038356,7]
[314104642,1707983435477,-194.57306009,0.00038356,7]
[314104643,1707983435487,-433.18563717,0.00038356,7]
[314104644,1707983435497,-621.53,0.00038356,7]
[314104645,1707983435506,-521.16182488,0.00038356,7]
[314104646,1707983435515,-507.54656674,0.00038356,7]
[314104647,1707983435525,-500.0,0.00038356,7]
[314104648,1707983435535,-255.25572185,0.00038356,2]
[314104649,1707983435544,-617.56054918,0.00038356,7]
[314104650,1707983435554,-500.0,0.00038356,7]
[314104651,1707983435564,-500.0,0.00038356,2]
[314104652,1707983435574,-439.03465363,0.00038356,7]
[314104653,1707983435584,-509.68790486,0.00038356,7]
[314104654,1707983435594,-500.0,0.00038356,2]
[314104655,1707983435605,-514.31756241,0.00038356,7]
[314104656,1707983435614,-500.0,0.00038356,7]
[314104657,1707983435625,-500.0,0.00038356,7]
[314104658,1707983435635,-500.0,0.00038356,7]
[314104659,1707983435645,-500.0,0.00038356,7]
[314104660,1707983435655,-500.0,0.00038356,7]
[314104661,1707983435664,-500.0,0.00038356,7]
[314104662,1707983435675,-500.0,0.00038356,7]
[314104663,1707983435687,-155.13587454,0.00038356,7]
[314104664,1707983435697,-500.0,0.00038356,7]
[314104665,1707983435706,-500.0,0.00038356,7]
[314104666,1707983435716,-500.0,0.00038356,7]
[314104667,1707983435733,-500.0,0.00038356,7]
[314104668,1707983435748,-500.0,0.00038356,7]
[314104669,1707983435758,-500.0,0.00038356,7]
[314104670,1707983435768,-500.0,0.00038356,7]
[314104671,1707983435779,-500.0,0.00038356,7]
[314104672,1707983435789,-500.0,0.00038356,7]
[314104673,1707983435799,-515.10163679,0.00038356,7]
[314104674,1707983435809,-500.0,0.00038356,7]
[314104675,1707983435819,-500.0,0.00038356,7]
[314104676,1707983435829,-518.93931893,0.00038356,7]
[314104677,1707983435838,-365.49263762,0.00038356,7]
[314104678,1707983435849,-500.0,0.00038356,7]
[314104679,1707983435859,-500.0,0.00038356,2]
[314104680,1707983435869,-500.0,0.00038356,7]
[314104681,1707983435879,-567.89192457,0.00038356,7]
[314104682,1707983435888,-500.0,0.00038356,7]
[314104683,1707983435898,-429.53858101,0.00038356,7]
[314104684,1707983435908,-500.0,0.00038356,7]
[314104685,1707983435917,-500.0,0.00038356,7]
[314104686,1707983435927,-500.0,0.00038356,7]
[314104687,1707983435938,-500.0,0.00038356,7]
[314104688,1707983435947,-500.0,0.00038356,7]
[314104689,1707983435957,-500.0,0.00038356,7]
[314104690,1707983435967,-500.0,0.00038356,7]
[314104691,1707983435977,-1731.18,0.00038356,7]
[314104692,1707983435987,-500.0,0.00038356,7]
[314104693,1707983435996,-424.78169131,0.00038356,7]
[314104694,1707983436007,-500.0,0.00038356,7]
[314104695,1707983436016,-500.0,0.00038356,7]
[314104696,1707983436026,-500.0,0.00038356,7]
[314104697,1707983436035,-500.0,0.00038356,7]
[314104698,1707983436045,-500.0,0.00038356,7]
[314104699,1707983436054,-500.0,0.00038356,7]
[314104700,1707983436063,-500.0,0.00038356,7]
[314104701,1707983436072,-500.0,0.00038356,7]
[314104702,1707983436081,-500.0,0.00038356,7]
[314104703,1707983436091,-544.31904344,0.00038356,7]
[314104704,1707983436104,-542.22300019,0.00038356,7]
[314104705,1707983436113,-441.93155954,0.00038356,7]
[314104706,1707983436123,-630.48717861,0.00038356,7]
[314104707,1707983436132,-500.0,0.00038356,7]
[314104708,1707983436142,-500.0,0.00038356,7]
[314104709,1707983436151,-500.0,0.00038356,7]
[314104710,1707983436161,-500.0,0.00038356,7]
[314104711,1707983436171,-500.0,0.00038356,7]
[314104712,1707983436182,-500.0,0.00038356,7]
[314104713,1707983436191,-500.0,0.00038356,7]
[314104714,1707983436200,-500.0,0.00038356,7]
[314104715,1707983436209,-500.0,0.00038356,7]
[314104716,1707983436218,-500.0,0.00038356,7]
[314104717,1707983436227,-500.0,0.00038356,7]
[314104718,1707983436237,-500.0,0.00038356,7]
[314104719,1707983436246,-500.0,0.00038356,7]
[314104720,1707983436255,-500.0,0.00038356,7]
[314104721,1707983436265,-500.0,0.00038356,7]
[314104722,1707983436275,-500.0,0.00038356,7]
[314104723,1707983436284,-150.0,0.00038356,7]
[314104724,1707983436294,-1297.96,0.00038356,7]
[314104725,1707983436303,-500.0,0.00038356,7]
[314104726,1707983436312,-542.17568011,0.00038356,7]
[314104727,1707983436323,-500.0,0.00038356,7]
[314104728,1707983436333,-589.56425294,0.00038356,7]
[314104729,1707983436343,-500.0,0.00038356,7]
[314104730,1707983436352,-500.0,0.00038356,7]
[314104731,1707983436362,-388.7759022,0.00038356,7]
[314104732,1707983436373,-500.0,0.00038356,7]
[314104733,1707983436382,-158.35489159,0.00038356,7]
[314104734,1707983436392,-505.83546786,0.00038356,7]
[314104735,1707983436402,-500.0,0.00038356,7]
[314104736,1707983436411,-500.0,0.00038356,7]
[314104737,1707983436421,-500.0,0.00038356,7]
[314104738,1707983436432,-500.0,0.00038356,7]
[314104739,1707983436444,-500.0,0.00038356,7]
[314104740,1707983436454,-12.4255409,0.00038356,7]
[314104741,1707983436472,-418.528043,0.00038356,7]
[314104742,1707983436484,-90.8128895,0.00038356,7]
[314104743,1707983436493,-453.3146235,0.00038356,7]
[314104744,1707983436510,-46.6853765,0.00038356,7]
[314104745,1707983436520,-638.98140088,0.00038356,7]
[314104746,1707983436530,-500.0,0.00038356,7]
[314104747,1707983436539,-540.93589984,0.00038356,7]
[314104748,1707983436549,-500.0,0.00038356,7]
[314104749,1707983436558,-524.56549794,0.00038356,7]
[314104750,1707983436568,-512.21698579,0.00038356,7]
[314104751,1707983436577,-537.50208942,0.00038356,7]
[314104752,1707983436587,-533.71109585,0.00038356,7]
[314104753,1707983436596,-500.0,0.00038356,7]
[314104754,1707983436606,-526.76572511,0.00038356,7]
[314104755,1707983436615,-500.0,0.00038356,7]
[314104756,1707983436624,-500.0,0.00038356,7]
[314104757,1707983436633,-500.0,0.00038356,7]
[314104758,1707983436643,-329.54,0.00038356,7]
[314104759,1707983436652,-500.0,0.00038356,7]
[314104760,1707983436661,-500.0,0.00038356,7]
[314104761,1707983436670,-500.0,0.00038356,7]
[314104762,1707983436680,-500.0,0.00038356,7]
[314104763,1707983436689,-500.0,0.00038356,7]
[314104764,1707983436699,-500.0,0.00038356,7]
[314104765,1707983436708,-500.0,0.00038356,7]
[314104766,1707983436717,-500.0,0.00038356,7]
[314104767,1707983436726,-500.0,0.00038356,7]
[314104768,1707983436736,-500.0,0.00038356,7]
[314104769,1707983436745,-521.67518688,0.00038356,7]
[314104770,1707983436754,-500.0,0.00038356,7]
[314104771,1707983436764,-500.0,0.00038356,2]
[314104772,1707983436774,-406.82570123,0.00038356,2]
[314104773,1707983436783,-500.0,0.00038356,7]
[314104774,1707983436792,-500.0,0.00038356,7]
[314104775,1707983436801,-500.0,0.00038356,7]
[314104776,1707983436810,-500.0,0.00038356,7]
[314104777,1707983436820,-645.61439623,0.00038356,7]
[314104778,1707983436829,-556.52604702,0.00038356,7]
[314104779,1707983436839,-500.0,0.00038356,7]
[314104780,1707983436848,-318.53614402,0.00038356,7]
[314104781,1707983436857,-500.0,0.00038356,7]
[314104782,1707983436868,-500.0,0.00038356,7]
[314104783,1707983436877,-500.0,0.00038356,7]
[314104784,1707983436887,-500.0,0.00038356,7]
[314104785,1707983436897,-500.0,0.00038356,7]
[314104786,1707983436905,-507.25670299,0.00038356,7]
[314104787,1707983436914,-500.0,0.00038356,7]
[314104788,1707983436924,-500.0,0.00038356,7]
[314104789,1707983436934,-500.0,0.00038356,7]
[314104790,1707983436943,-500.0,0.00038356,7]
[314104791,1707983436952,-500.0,0.00038356,7]
[314104792,1707983436961,-500.0,0.00038356,7]
[314104793,1707983436971,-500.0,0.00038356,7]
[314104794,1707983436980,-170.70729447,0.00038356,7]
[314104795,1707983436989,-500.0,0.00038356,7]
[314104796,1707983436998,-500.0,0.00038356,7]
[314104797,1707983437007,-558.66621297,0.00038356,7]
[314104798,1707983437017,-500.0,0.00038356,7]
[314104799,1707983437025,-500.0,0.00038356,7]
[314104800,1707983437034,-526.34368692,0.00038356,7]
[314104801,1707983437044,-542.08390841,0.00038356,7]
[314104802,1707983437053,-500.0,0.00038356,7]
[314104803,1707983437062,-514.5645032,0.00038356,7]
[314104804,1707983437072,-515.88834121,0.00038356,7]
[314104805,1707983437081,-507.34944245,0.00038356,7]
[314104806,1707983437092,-500.0,0.00038356,7]
[314104807,1707983437105,-488.57624882,0.00038356,7]
[314104808,1707983437114,-530.45027217,0.00038356,7]
[314104809,1707983437124,-523.11107062,0.00038356,7]
[314104810,1707983437133,-532.98264924,0.00038356,7]
[314104811,1707983437143,-512.4387974,0.00038356,7]
[314104812,1707983437152,-500.0,0.00038356,7]
[314104813,1707983437162,-526.07036505,0.00038356,7]
[314104814,1707983437172,-500.0,0.00038356,7]
[314104815,1707983437181,-521.3631583,0.00038356,7]
[314104816,1707983437191,-530.02949169,0.00038356,7]
[314104817,1707983437200,-547.53466748,0.00038356,7]
[314104818,1707983437210,-500.0,0.00038356,7]
[314104819,1707983437219,-168.86447282,0.00038356,7]
[314104820,1707983437228,-500.0,0.00038356,7]
[314104821,1707983437238,-500.0,0.00038356,7]
[314104822,1707983437247,-247.5209141,0.00038356,7]
[314104823,1707983437256,-499.69477585,0.00038356,7]
[314104824,1707983437411,-648.10808523,0.00038356,7]
[314104825,1707983437421,-500.0,0.00038356,7]
[314104826,1707983437432,-553.595843,0.00038356,7]
[314104827,1707983437442,-500.0,0.00038356,7]
[314104828,1707983437450,-557.62563878,0.00038356,7]
[314104829,1707983437460,-195.03870658,0.00038356,7]
[314104830,1707983437469,-547.18185331,0.00038356,7]
[314104831,1707983437479,-500.0,0.00038356,7]
[314104832,1707983437488,-507.49968044,0.00038356,7]
[314104833,1707983437498,-500.0,0.00038356,7]
[314104834,1707983437507,-162.01,0.00038356,7]
[314104835,1707983437517,-540.61131199,0.00038356,7]
[314104836,1707983437527,-500.0,0.00038356,7]
[314104837,1707983437537,-500.0,0.00038356,7]
[314104838,1707983437546,-500.0,0.00038356,7]
[314104839,1707983437555,-502.98357643,0.00038356,7]
[314104840,1707983437565,-500.0,0.00038356,7]
[314104841,1707983437575,-150.12,0.00038356,7]
[314104842,1707983437584,-583.05,0.00038356,7]
[314104843,1707983437594,-500.0,0.00038356,7]
[314104844,1707983437603,-500.0,0.00038356,7]
[314104845,1707983437612,-500.0,0.00038356,7]
[314104846,1707983437621,-504.40770924,0.00038356,7]
[314104847,1707983437631,-500.0,0.00038356,7]
[314104849,1707983437640,-500.0,0.00038356,7]
[314104851,1707983437649,-500.0,0.00038356,7]
[314104853,1707983437658,-500.0,0.00038356,7]
[314104855,1707983437667,-205.28474714,0.00038356,7]
[314104856,1707983437676,-500.0,0.00038356,7]
[314104857,1707983437687,-500.0,0.00038356,7]
[314104859,1707983437697,-500.0,0.00038356,7]
[314104860,1707983437706,-500.0,0.00038356,7]
[314104861,1707983437715,-500.0,0.00038356,7]
[314104862,1707983437724,-640.71334413,0.00038356,7]
[314104863,1707983437732,-266.3285269,0.00038356,7]
[314104864,1707983437743,-500.0,0.00038356,7]
[314104865,1707983437752,-500.0,0.00038356,7]
[314104866,1707983437762,-586.16137636,0.00038356,7]
[314104867,1707983437771,-500.0,0.00038356,7]
[314104868,1707983437780,-500.0,0.00038356,7]
[314104869,1707983437789,-500.0,0.00038356,7]
[314104870,1707983437799,-547.86,0.00038356,7]
[314104871,1707983437808,-500.0,0.00038356,7]
[314104872,1707983437817,-500.0,0.00038356,7]
[314104873,1707983437827,-500.0,0.00038356,7]
[314104874,1707983437836,-500.0,0.00038356,7]
[314104875,1707983437845,-500.0,0.00038356,7]
[314104876,1707983437854,-500.0,0.00038356,7]
[314104877,1707983437864,-500.0,0.00038356,7]
[314104878,1707983437873,-500.0,0.00038356,7]
[314104879,1707983437882,-528.42688906,0.00038356,7]
[314104880,1707983437891,-578.18745555,0.00038356,7]
[314104881,1707983437901,-500.0,0.00038356,7]
[314104882,1707983437911,-500.0,0.00038356,7]
[314104883,1707983437920,-545.73529076,0.00038356,7]
[314104884,1707983437929,-500.0,0.00038356,7]
[314104885,1707983437941,-500.0,0.00038356,7]
[314104886,1707983437950,-534.07339484,0.00038356,7]